bitfinex/quotes_ETHUSD_20260102
["timestamp","ask_amount","ask_price","bid_price","bid_amount"]
[1767356525806,2.28096627,3049.2,3048.7,2.47390591]
[1767356526158,2.83700868,3049.2,3048.7,2.47390591]
[1767356526374,2.28096627,3049.1,3048.7,0.001]
[1767356526582,2.28096627,3049.1,3048.5,2.47390591]
[1767356527604,2.28096627,3049.0,3048.5,2.47390591]
[1767356528265,2.28096627,3049.0,3048.6,0.001]
[1767356528589,3.69800868,3049.2,3048.7,2.47290591]
[1767356528887,0.863,3049.3,3048.7,2.47290591]
[1767356529110,0.002,3049.3,3048.7,2.47290591]
[1767356529465,0.002,3049.3,3048.8,2.47290591]
[1767356530186,5.56012127,3049.6,3048.8,2.47290591]
[1767356530365,5.56012127,3049.6,3048.9,2.47290591]
[1767356530559,3.279155,3049.6,3048.9,2.47290591]
[1767356530889,2.28096627,3049.5,3048.9,2.47290591]
[1767356532600,2.28096627,3049.5,3049.2,0.6]
[1767356532799,2.28096627,3049.5,3049.2,0.59871284]
[1767356532958,2.28096627,3049.4,3048.6,0.001]
[1767356533162,2.28096627,3049.4,3048.7,2.47290591]
[1767356534286,2.28096627,3049.3,3048.7,2.47290591]
[1767356534489,2.28096627,3049.3,3048.6,0.001]
[1767356535390,2.28096627,3049.1,3049.0,0.001]
[1767356535571,2.28096627,3049.1,3048.6,0.001]
[1767356536092,2.28096627,3049.1,3048.4,0.001]
[1767356536093,2.28096627,3048.7,3048.2,0.001]
[1767356536296,2.28096627,3048.6,3048.2,0.001]
[1767356538398,2.28096627,3048.5,3047.9,2.47290591]
[1767356539874,2.28096627,3048.5,3047.7,0.001]
[1767356540081,2.28096627,3048.4,3047.7,0.001]
[1767356540396,2.28096627,3048.4,3047.7,2.47390591]
[1767356540603,2.28096627,3048.3,3047.7,2.47390591]
[1767356543200,2.28096627,3048.3,3047.7,3.28214776]
[1767356543376,2.28096627,3048.3,3047.8,2.47290591]
[1767356544978,2.28096627,3048.6,3047.7,0.001]
[1767356545179,2.28096627,3048.5,3047.7,0.001]
[1767356546988,2.28916537,3048.3,3047.6,0.001]
[1767356547193,2.28916537,3048.1,3047.6,2.27054546]
[1767356548378,2.28916537,3048.0,3047.6,2.27054546]
[1767356549195,2.28916537,3048.0,3047.6,0.001]
[1767356549682,2.28916537,3048.0,3047.6,2.27054546]
[1767356551096,2.28916537,3048.3,3047.7,2.26954546]
[1767356551295,0.861,3048.3,3047.7,2.26954546]
[1767356551532,2.28916537,3048.5,3047.7,2.26954546]
[1767356551698,6.43048273,3048.5,3047.7,2.26954546]
[1767356551897,5.56948273,3048.5,3047.7,2.26954546]
[1767356552101,6.43048273,3048.5,3047.7,2.82482477]
[1767356552616,2.28916537,3048.4,3047.7,2.82482477]
[1767356553204,2.28916537,3048.4,3047.1,3.2817391]
[1767356553205,2.28916537,3048.0,3046.4,0.001]
[1767356553386,2.28916537,3047.8,3046.8,2.26954546]
[1767356553587,0.861,3047.7,3047.0,2.26954546]
[1767356553812,0.861,3047.7,3047.0,2.49650001]
[1767356554515,4.14224974,3047.7,3047.0,2.49650001]
[1767356554714,2.28916537,3047.6,3047.0,2.49650001]
[1767356556912,2.28916537,3047.6,3046.5,1.03e-06]
[1767356556913,2.28916537,3047.5,3046.5,1.03e-06]
[1767356557106,2.28916537,3047.5,3046.5,2.26954649]
[1767356557302,3.15016537,3047.4,3046.5,2.26954649]
[1767356557626,2.28916537,3047.3,3046.5,2.26954649]
[1767356558423,2.60418191,3047.3,3046.5,2.26954649]
[1767356558589,3.28170123,3047.2,3046.5,2.26954649]
[1767356558787,2.28916537,3047.1,3046.5,2.26954649]
[1767356559002,2.28916537,3047.1,3047.0,0.001]
[1767356559203,2.28916537,3047.1,3047.0,1.04e-06]
[1767356559401,3.20591471,3047.1,3047.0,1.04e-06]
[1767356560830,6.48772364,3047.1,3047.0,1.04e-06]
[1767356560995,5.5709743,3047.1,3047.0,1.04e-06]
[1767356562132,5.5709743,3047.1,3046.5,1.03e-06]
[1767356562133,2.28916537,3047.0,3046.5,1.03e-06]
[1767356562337,2.28916537,3046.8,3046.5,1.03e-06]
[1767356562495,2.60418191,3046.8,3046.5,1.03e-06]
[1767356562828,3.15016537,3046.8,3046.5,1.03e-06]
[1767356564496,2.28916537,3046.7,3046.5,1.03e-06]
[1767356564815,3.15016537,3046.7,3046.5,1.03e-06]
[1767356565426,2.28916537,3046.6,3046.5,1.03e-06]
[1767356567127,2.28916537,3046.6,3046.4,1.03e-06]
[1767356567301,0.861,3046.7,3046.4,2.26954649]
[1767356568099,3.15016537,3046.7,3046.4,2.26954649]
[1767356568300,4.08106353,3047.3,3046.4,2.26954649]
[1767356568301,0.861,3046.6,3046.4,2.26954649]
[1767356568616,6.43209318,3047.0,3046.4,2.26954649]
[1767356568811,6.21439973,3046.9,3046.5,2.27054546]
[1767356569018,2.28916537,3046.8,3046.5,2.27054546]
[1767356571096,2.28916537,3046.8,3046.4,1.03e-06]
[1767356571097,3.2821342,3046.8,3046.4,1.03e-06]
[1767356571302,2.28916537,3046.6,3046.0,2.26954546]
[1767356573431,2.28916537,3046.4,3046.0,2.26954546]
[1767356574007,2.28916537,3046.4,3045.7,0.001]
[1767356574008,3.28234753,3046.6,3045.8,2.26954546]
[1767356574323,6.82497123,3046.7,3045.8,5.55275316]
[1767356574551,2.28916537,3046.9,3045.9,2.26954546]
[1767356574844,2.28916537,3047.5,3046.7,3.76604699]
[1767356575154,0.002,3047.6,3046.8,2.26954546]
[1767356575354,5.57060723,3047.5,3046.8,2.26954546]
[1767356575509,2.28916537,3047.5,3046.8,2.58260001]
[1767356575708,0.002,3047.6,3046.8,2.58260001]
[1767356575903,0.002,3047.6,3046.9,2.30584557]
[1767356576715,0.002,3047.6,3047.0,2.30584557]
[1767356579738,2.3856787,3047.6,3047.0,2.30584557]
[1767356583713,5.66698052,3047.6,3047.0,2.30584557]
[1767356584536,2.3856787,3047.6,3047.0,2.30584557]
[1767356586344,2.3856787,3047.6,3047.1,2.30584557]
[1767356587636,0.002,3047.6,3047.1,2.30584557]
[1767356588351,2.3856787,3047.6,3047.1,2.30584557]
[1767356589035,0.002,3047.6,3047.1,2.30584557]
[1767356589237,2.3856787,3047.6,3047.1,2.30584557]
[1767356594528,4.1420189,3047.9,3047.1,2.30584557]
[1767356594529,2.3836787,3047.9,3047.2,2.30584557]
[1767356596563,2.3836787,3047.9,3047.3,2.30584557]
[1767356596762,5.66463122,3047.9,3047.3,2.30584557]
[1767356596966,2.3836787,3047.8,3047.3,2.30584557]
[1767356597959,2.3836787,3047.8,3046.9,2.30584557]
[1767356597960,2.3836787,3047.7,3046.9,2.30584557]
[1767356598663,2.3836787,3047.7,3047.0,2.30584557]
[1767356600738,2.3836787,3047.6,3047.0,2.30584557]
[1767356604867,2.3836787,3047.6,3047.1,2.30584557]
[1767356612078,2.3836787,3047.6,3047.0,0.001]
[1767356612380,2.31770731,3047.4,3047.0,2.28396857]
[1767356623795,6.56301206,3047.4,3046.4,0.861]
[1767356624095,2.31770731,3047.2,3046.5,2.28296857]
[1767356625478,2.31770731,3047.2,3046.6,2.28296857]
[1767356625792,2.31770731,3047.0,3046.6,2.28296857]
[1767356629571,2.31770731,3047.0,3046.4,3.14396857]
[1767356629893,2.31770731,3047.0,3046.5,2.28296857]
[1767356630395,2.31970731,3047.6,3046.8,2.28296857]
[1767356630614,0.23217073,3047.5,3046.8,2.28296857]
[1767356630786,2.54987804,3047.5,3046.8,2.28296857]
[1767356633313,3.28148585,3047.4,3046.8,2.28296857]
[1767356633517,2.32346732,3047.4,3046.8,2.28296857]
[1767356633691,2.32346732,3047.4,3046.8,2.28396857]
[1767356634529,3.51358339,3047.5,3046.8,2.28396857]
[1767356635019,0.002,3047.7,3046.8,2.28396857]
[1767356635020,5.60591418,3048.4,3047.5,2.27817164]
[1767356635223,2.32546732,3048.4,3048.0,2.27817164]
[1767356635386,5.60591258,3048.4,3048.0,2.27817164]
[1767356635920,5.60591258,3048.4,3047.5,4.62382767]
[1767356635921,2.40000973,3048.3,3047.6,2.30901017]
[1767356636123,2.40000973,3048.1,3047.3,5.59057708]
[1767356636301,2.40000973,3048.1,3047.4,2.30901017]
[1767356637226,2.40000973,3048.1,3047.5,2.30901017]
[1767356639616,0.002,3048.4,3047.6,2.30901017]
[1767356640128,2.40000973,3048.2,3047.4,2.30901017]
[1767356640621,2.40000973,3048.2,3047.4,5.59049522]
[1767356640821,2.40000973,3048.2,3047.4,2.30901017]
[1767356641219,3.76282767,3048.1,3047.4,2.30901017]
[1767356641522,2.40000973,3048.0,3047.4,2.30901017]
[1767356641820,2.40000973,3047.8,3047.4,2.30901017]
[1767356642022,2.40000973,3047.7,3047.1,2.30901017]
[1767356642191,2.40000973,3047.6,3047.1,2.30901017]
[1767356642401,2.40000973,3047.6,3047.0,0.001]
[1767356642736,2.40000973,3047.5,3047.0,0.001]
[1767356642897,2.40000973,3047.5,3047.0,2.31001017]
[1767356650927,0.002,3047.9,3047.2,2.30901017]
[1767356651235,2.40200973,3047.9,3047.2,2.30901017]
[1767356651535,6.57955017,3047.9,3047.2,2.30901017]
[1767356651708,2.40000973,3047.8,3047.2,2.30901017]
[1767356656834,3.28107982,3047.8,3047.2,2.30901017]
[1767356657027,2.40000973,3047.7,3047.2,2.30901017]
[1767356659340,2.40000973,3047.6,3047.2,2.30901017]
[1767356660919,2.96812839,3047.6,3047.2,2.30901017]
[1767356661117,2.40000973,3047.5,3047.2,2.30901017]
[1767356661436,2.40000973,3047.5,3047.0,0.001]
[1767356662744,2.40000973,3047.5,3047.0,2.31001017]
[1767356667031,2.34129611,3047.4,3047.0,2.31001017]
[1767356669460,3.28150085,3047.4,3047.0,2.31001017]
[1767356669659,2.34129611,3047.3,3047.0,2.31001017]
[1767356671059,2.34129611,3047.3,3047.0,0.001]
[1767356673043,0.002,3047.9,3047.1,2.25507593]
[1767356673244,0.002,3048.4,3047.3,2.25507593]
[1767356673540,2.34329611,3048.4,3047.3,2.25507593]
[1767356675162,2.34329611,3048.4,3047.5,2.25507593]
[1767356675360,2.34329611,3048.4,3047.7,2.25507593]
[1767356677069,2.34129611,3048.3,3047.7,2.25507593]
[1767356677567,2.34129611,3048.3,3047.5,2.25507593]
[1767356679075,2.34129611,3048.1,3047.5,2.25507593]
[1767356684776,2.34329611,3048.1,3047.5,2.25507593]
[1767356685480,3.76429832,3048.3,3047.5,2.25507593]
[1767356685481,0.002,3049.2,3048.5,1.09730313]
[1767356685683,0.002,3049.2,3048.5,1.07703929]
[1767356685891,0.002,3049.4,3048.5,1.07503929]
[1767356686550,0.002,3049.4,3048.8,0.6]
[1767356686853,2.66392572,3049.4,3048.9,1.07503929]
[1767356690470,2.66392572,3049.4,3048.8,0.6]
[1767356690678,2.34129611,3049.3,3048.5,1.07503929]
[1767356690972,2.34129611,3049.3,3048.2,1.07503929]
[1767356691171,2.34129611,3049.2,3048.3,4.35549396]
[1767356691475,2.34129611,3049.2,3048.3,1.07503929]
[1767356692185,2.34129611,3049.2,3048.4,4.35538123]
[1767356692390,2.34129611,3049.2,3047.9,3.29720077]
[1767356692391,2.34129611,3049.2,3048.1,1.07503929]
[1767356692558,2.34129611,3049.2,3048.3,1.07503929]
[1767356695994,2.34129611,3049.2,3048.4,4.35544868]
[1767356696299,2.34129611,3049.2,3048.4,3.28040939]
[1767356696983,2.34129611,3049.2,3048.5,1.07503929]
[1767356698581,2.34129611,3049.2,3048.3,3.28046965]
[1767356698881,2.34329611,3049.2,3048.3,4.79273149]
[1767356699079,2.34329611,3049.2,3048.4,3.28038362]
[1767356699290,2.34329611,3049.2,3048.4,4.35542291]
[1767356700567,2.34329611,3049.2,3048.5,4.3553096]
[1767356700767,2.34329611,3049.2,3048.5,1.07503929]
[1767356704988,3.28157665,3049.2,3048.5,1.07503929]
[1767356705192,2.4322512,3049.1,3048.5,1.07503929]
[1767356705393,2.4322512,3048.9,3048.5,1.07503929]
[1767356705768,2.4322512,3048.9,3048.3,1.51226184]
[1767356706096,2.4322512,3048.9,3048.3,1.07503929]
[1767356707295,2.4322512,3048.9,3048.5,0.001]
[1767356708199,2.4322512,3048.9,3048.5,1.07603929]
[1767356714290,2.4322512,3049.1,3048.5,1.07603929]
[1767356714496,2.4322512,3049.1,3048.6,0.21403929]
[1767356714497,0.861,3049.0,3048.6,0.21403929]
[1767356714697,3.2932512,3049.0,3048.6,0.21403929]
[1767356714898,0.861,3048.9,3048.6,0.21403929]
[1767356715206,3.2932512,3048.9,3048.6,0.21403929]
[1767356720398,0.861,3048.8,3048.6,0.21403929]
[1767356721117,2.76157632,3048.7,3047.9,0.21403929]
[1767356721323,2.4322512,3048.6,3048.1,0.21503929]
[1767356723291,2.4322512,3048.6,3048.1,3.28068799]
[1767356723491,2.4322512,3048.6,3048.2,0.21503929]
[1767356724794,2.4322512,3048.6,3048.5,0.001]
[1767356724984,2.4322512,3048.6,3048.2,0.21503929]
[1767356726613,0.861,3048.5,3048.2,0.21503929]
[1767356729090,0.861,3048.5,3048.2,3.49565175]
[1767356730121,0.861,3048.5,3048.2,0.21503929]
[1767356730813,2.4322512,3048.6,3048.2,3.49565864]
[1767356731009,0.861,3048.4,3048.2,3.49565864]
[1767356731208,0.84072606,3048.4,3048.2,3.49565864]
[1767356731848,0.84072606,3048.4,3048.2,0.21503929]
[1767356732025,0.81842673,3048.4,3048.2,0.21503929]
[1767356735315,0.861,3048.4,3048.2,0.21503929]
[1767356735506,0.64496071,3048.4,3048.2,0.21503929]
[1767356736913,2.44216551,3048.7,3048.2,0.21503929]
[1767356737230,0.861,3048.5,3048.2,0.21503929]
[1767356739416,3.30316551,3048.5,3048.2,0.21503929]
[1767356740444,3.30516551,3048.5,3048.2,0.21503929]
[1767356740613,2.44216551,3048.4,3048.1,0.001]
[1767356745068,2.44216551,3048.4,3047.8,0.001]
[1767356745069,2.77268206,3048.4,3047.8,0.001]
[1767356745221,2.77268206,3048.4,3047.6,3.28216907]
[1767356745561,2.77268206,3048.4,3047.7,0.001]
[1767356745918,2.77268206,3048.4,3047.7,3.28215441]
[1767356746359,2.77268206,3048.4,3047.8,3.28103958]
[1767356746533,2.44216551,3048.4,3047.8,3.28203958]
[1767356747048,2.44216551,3048.4,3047.8,0.001]
[1767356747428,3.30316551,3048.3,3047.8,0.001]
[1767356747629,0.002,3048.5,3047.8,3.76087812]
[1767356747839,0.861,3048.4,3048.0,0.001]
[1767356748920,0.863,3048.4,3048.0,0.001]
[1767356749142,0.002,3048.4,3048.0,0.001]
[1767356749354,0.001,3048.4,3048.0,3.76087812]
[1767356749627,0.001,3048.4,3048.1,0.70418152]
[1767356750337,0.001,3048.4,3047.9,3.2809371]
[1767356751172,0.002,3048.8,3048.5,2.40490995]
[1767356751457,2.44216551,3049.0,3048.5,2.40490995]
[1767356751458,0.861,3048.9,3048.5,2.40490995]
[1767356751662,2.44216551,3049.0,3048.5,2.40490995]
[1767356751961,0.861,3048.9,3048.7,2.40490995]
[1767356752828,3.30316551,3049.0,3048.7,2.40490995]
[1767356755755,2.44216551,3049.0,3048.7,2.40490995]
[1767356755939,0.861,3049.0,3048.7,2.40490995]
[1767356757927,0.863,3049.0,3048.7,2.40490995]
[1767356759953,2.34874238,3049.1,3048.8,2.26821406]
[1767356762653,0.002,3049.2,3048.9,2.26821406]
[1767356762852,0.002,3049.2,3048.8,7.04084774]
[1767356762853,2.35074238,3049.7,3049.1,2.26821406]
[1767356763161,2.35074238,3049.7,3049.0,6.02909218]
[1767356763361,2.35074238,3049.7,3049.0,7.28799626]
[1767356763865,2.35074238,3049.7,3049.1,2.26821406]
[1767356764547,2.35074238,3049.7,3049.1,5.54786688]
[1767356764752,2.35074238,3049.7,3049.2,2.26821406]
[1767356767164,2.35074238,3049.7,3049.2,5.54774753]
[1767356767360,2.34874238,3049.6,3049.2,1.38472934]
[1767356767670,2.34874238,3049.6,3049.1,2.26821406]
[1767356768078,2.34874238,3049.6,3049.1,5.54785155]
[1767356768373,2.34874238,3049.6,3049.0,3.76087812]
[1767356768374,2.34874238,3049.6,3049.2,5.54774978]
[1767356768938,2.34874238,3049.6,3049.2,2.26821406]
[1767356769957,2.34874238,3049.6,3049.0,2.26821406]
[1767356770678,2.91190841,3049.6,3048.8,2.26821406]
[1767356770839,2.34874238,3049.5,3048.8,2.26821406]
[1767356771165,2.34874238,3049.5,3048.8,5.54817945]
[1767356773261,2.34874238,3049.5,3048.9,2.26821406]
[1767356774462,2.34874238,3049.5,3048.9,5.54806828]
[1767356775070,2.34874238,3049.5,3048.9,2.26821406]
[1767356775471,2.34874238,3049.4,3048.9,2.26821406]
[1767356775770,2.34874238,3049.4,3048.0,2.26821406]
[1767356775945,2.34874238,3049.4,3048.3,2.26821406]
[1767356776266,2.34874238,3049.4,3048.1,2.26821406]
[1767356776466,2.34874238,3049.2,3048.1,5.54888597]
[1767356776660,2.34874238,3049.0,3048.2,2.26821406]
[1767356777338,3.75949779,3049.5,3048.8,2.26821406]
[1767356777339,2.34874238,3049.5,3048.8,2.26821406]
[1767356777559,0.002,3049.7,3048.8,2.26821406]
[1767356777560,2.35074238,3049.7,3048.8,2.26821406]
[1767356777765,2.35074238,3049.7,3048.7,4.62049779]
[1767356777766,2.35074238,3049.7,3049.1,2.26821406]
[1767356778141,0.002,3049.7,3049.1,2.26821406]
[1767356778341,2.35074238,3049.7,3049.3,2.26821406]
[1767356782573,2.35074238,3049.7,3049.1,0.001]
[1767356782751,2.35074238,3049.7,3049.1,2.26921406]
[1767356783278,2.35074238,3049.7,3049.2,2.26821406]
[1767356784576,2.35074238,3049.7,3049.3,2.26821406]
[1767356784798,2.35074238,3049.7,3049.4,0.55477477]
[1767356785285,2.35074238,3049.7,3049.4,2.82298883]
[1767356788783,2.35074238,3049.7,3049.4,2.26821406]
[1767356791262,0.002,3049.7,3049.4,2.26821406]
[1767356792167,2.31466866,3049.6,3049.2,2.32212293]
[1767356795189,2.31466866,3049.6,3049.2,5.60164325]
[1767356796393,2.31466866,3049.6,3049.3,2.32212293]
[1767356796778,3.28063634,3050.1,3049.4,2.32212293]
[1767356796779,0.002,3050.1,3049.4,2.32212293]
[1767356796984,0.863,3050.1,3049.4,2.32212293]
[1767356797192,3.17766866,3050.1,3049.4,2.32212293]
[1767356797363,3.17766866,3050.1,3049.6,2.32212293]
[1767356797691,0.002,3049.7,3049.6,2.32212293]
[1767356797859,0.002,3049.7,3049.6,3.21018044]
[1767356798689,3.17766866,3050.1,3049.7,2.32212293]
[1767356801988,3.17766866,3050.1,3049.8,2.32212293]
[1767356802680,0.861,3050.0,3049.8,2.32212293]
[1767356803372,0.84072807,3050.0,3049.8,5.60102028]
[1767356804292,0.82045615,3050.0,3049.8,5.60102028]
[1767356804487,0.82245615,3050.0,3049.8,5.60102028]
[1767356805090,0.80218424,3050.0,3049.8,5.60102028]
[1767356805398,0.861,3050.0,3049.8,5.60102028]
[1767356811708,0.861,3050.0,3049.8,2.32212293]
[1767356811891,2.4457914,3049.9,3049.6,5.63828308]
[1767356812086,2.4457914,3049.9,3049.5,3.27916991]
[1767356812287,2.4457914,3049.9,3049.4,3.27930018]
[1767356812698,2.4457914,3049.9,3049.6,3.27911825]
[1767356813019,2.4457914,3049.9,3049.5,3.27916705]
[1767356813193,2.77687054,3049.9,3049.3,0.001]
[1767356813393,2.77687054,3049.9,3049.3,2.36023442]
[1767356813581,2.77687054,3049.9,3049.4,3.27931495]
[1767356813778,0.48091024,3049.7,3049.4,3.27931495]
[1767356815312,0.48091024,3049.9,3049.4,2.35923442]
[1767356816306,0.48091024,3049.9,3049.6,2.4074561]
[1767356819298,0.48091024,3049.9,3049.6,5.68656296]
[1767356820024,0.48291024,3049.9,3049.6,5.68656296]
[1767356820413,0.48291024,3049.9,3049.6,2.4074561]
[1767356820601,0.002,3050.0,3049.6,2.4074561]
[1767356820602,0.49091024,3050.3,3049.8,2.4074561]
[1767356821715,0.49091024,3050.3,3049.8,5.68625946]
[1767356822926,0.49091024,3050.3,3049.8,8.96516299]
[1767356823228,0.49091024,3050.3,3049.9,0.8965163]
[1767356823427,0.49091024,3050.3,3049.9,3.3039724]
[1767356824212,0.47063834,3050.3,3050.0,3.27868852]
[1767356824396,0.47463834,3050.9,3050.1,2.4074561]
[1767356825402,0.47463834,3050.9,3050.3,2.4074561]
[1767356825403,0.002,3050.9,3050.3,2.4074561]
[1767356826120,0.47463834,3051.0,3050.6,2.4074561]
[1767356826714,0.47463834,3051.0,3050.7,2.4074561]
[1767356828616,0.002,3051.0,3050.7,3.27790218]
[1767356828820,0.002,3051.0,3050.8,2.4074561]
[1767356829019,0.002,3050.9,3050.8,2.4074561]
[1767356833730,0.002,3051.0,3050.8,2.4074561]
[1767356834036,0.002,3051.0,3050.8,2.97599471]
[1767356835313,0.45636645,3050.9,3050.5,2.4074561]
[1767356835505,0.45636645,3050.9,3050.4,3.27820789]
[1767356835708,0.45636645,3050.9,3050.3,5.68578131]
[1767356835908,0.45636645,3050.9,3050.4,3.27824148]
[1767356836217,0.45836645,3050.9,3050.4,5.68569758]
[1767356837119,0.45836645,3050.9,3050.4,2.4074561]
[1767356837640,0.45836645,3050.9,3050.4,5.68569924]
[1767356839436,0.45836645,3050.9,3050.2,3.27844132]
[1767356839437,0.45836645,3050.9,3050.2,5.68589742]
[1767356839637,0.45836645,3050.9,3050.3,5.6857777]
[1767356840136,0.45836645,3050.9,3050.3,2.4074561]
[1767356842816,0.45836645,3050.9,3050.3,2.4084561]
[1767356843330,0.83215904,3050.9,3050.3,2.4084561]
[1767356843536,0.37579259,3050.9,3050.3,2.4084561]
[1767356845345,0.37579259,3050.9,3050.3,0.001]
[1767356847021,0.37579259,3050.9,3050.3,2.28645058]
[1767356847221,0.002,3050.9,3050.3,2.28645058]
[1767356849145,0.002,3050.9,3050.4,2.28545058]
[1767356851449,0.002,3050.9,3050.5,2.31823209]
[1767356853058,0.862,3051.2,3050.6,2.28545058]
[1767356853059,0.002,3051.2,3050.6,2.28545058]
[1767356853357,0.002,3051.2,3050.8,2.28545058]
[1767356854456,0.002,3051.3,3050.8,2.28545058]
[1767356855264,0.002,3051.3,3050.9,2.28545058]
[1767356857251,0.002,3051.3,3051.0,2.28545058]
[1767356858537,0.006,3051.2,3050.6,3.2779884]
[1767356858767,0.006,3051.2,3050.7,2.28545058]
[1767356858982,0.006,3051.2,3050.7,5.5633669]
[1767356860770,0.006,3051.2,3050.8,2.28545058]
[1767356860941,0.002,3051.3,3050.8,2.28545058]
[1767356861137,0.008,3051.3,3050.8,2.28545058]
[1767356861376,0.008,3051.3,3050.9,2.28545058]
[1767356862847,0.002,3051.3,3050.9,2.28545058]
[1767356864857,0.008,3051.3,3050.9,2.28545058]
[1767356865776,0.002,3051.3,3050.9,2.28645058]
[1767356868174,0.002,3051.3,3050.9,5.56416435]
[1767356868378,0.002,3051.3,3051.0,2.28545058]
[1767356875786,0.008,3051.3,3051.0,2.28545058]
[1767356880382,0.008,3051.3,3051.0,2.28645058]
[1767356880891,0.002,3051.3,3051.0,2.28645058]
[1767356881585,0.008,3051.3,3051.0,2.28645058]
[1767356882167,0.008,3051.3,3050.5,3.27805617]
[1767356882168,0.006,3051.2,3050.5,3.27805617]
[1767356882373,0.006,3051.2,3050.6,5.65280539]
[1767356882699,0.006,3051.2,3050.7,2.37484039]
[1767356885280,0.006,3051.2,3050.7,5.65276078]
[1767356885481,0.002,3051.3,3050.8,2.37484039]
[1767356887898,0.002,3051.3,3050.8,5.65264719]
[1767356888201,0.002,3051.3,3050.9,2.37484039]
[1767356888670,0.002,3051.3,3050.9,2.37363065]
[1767356890494,0.00520974,3051.2,3050.8,0.001]
[1767356890679,0.00520974,3051.2,3050.8,2.37584039]
[1767356891293,0.00520974,3051.2,3050.5,5.65292189]
[1767356891606,0.00520974,3051.2,3050.6,2.37484039]
[1767356891806,0.00520974,3051.2,3050.6,3.27803051]
[1767356891970,0.00520974,3051.2,3050.7,2.37484039]
[1767356895682,0.00420974,3051.1,3050.6,0.001]
[1767356897523,0.00420974,3051.1,3050.5,2.37484039]
[1767356901699,0.00320974,3050.8,3050.3,0.001]
[1767356901929,0.00320974,3050.8,3050.1,2.37460561]
[1767356902235,3.75529542,3050.9,3050.1,2.37460561]
[1767356902236,0.00344452,3050.6,3050.1,2.37460561]
[1767356904127,0.00344452,3050.6,3050.5,0.001]
[1767356904428,0.00344452,3050.6,3050.1,2.37460561]
[1767356909632,0.86,3051.0,3050.1,2.37460561]
[1767356909633,0.00344452,3051.0,3050.2,2.3535857]
[1767356909837,3.28100413,3051.1,3050.2,2.3535857]
[1767356910017,0.32810041,3051.0,3050.2,2.38637043]
[1767356910535,0.32810041,3051.0,3050.2,2.3535857]
[1767356911034,0.33154493,3051.0,3050.2,2.3535857]
[1767356911644,2.4937451,3051.2,3050.3,2.3535857]
[1767356913241,2.4937451,3051.1,3050.4,2.3535857]
[1767356915343,3.27755635,3051.1,3050.4,2.3535857]
[1767356915547,2.4937451,3051.0,3050.4,2.3535857]
[1767356921255,2.4937451,3050.9,3050.4,2.3535857]
[1767356923450,2.4937451,3050.9,3050.3,0.001]
[1767356923655,2.4937451,3050.6,3050.0,2.3545857]
[1767356925637,2.4937451,3050.5,3050.0,2.3545857]
[1767356927554,2.4937451,3050.5,3050.3,0.001]
[1767356928160,5.77192093,3050.5,3050.3,0.001]
[1767356928461,5.77192093,3050.5,3050.1,2.3535857]
[1767356928626,3.39873358,3050.5,3050.1,2.3535857]
[1767356929031,6.67689355,3050.5,3050.1,2.3535857]
[1767356929259,2.4937451,3050.4,3050.1,2.3535857]
[1767356934658,5.77179711,3050.6,3050.1,2.3535857]
[1767356935566,5.77379711,3050.6,3050.1,2.3535857]
[1767356935768,2.4937451,3050.5,3050.1,2.3535857]
[1767356936338,6.67710312,3050.5,3050.1,2.3535857]
[1767356936559,3.3989203,3050.5,3050.1,2.3535857]
[1767356937072,6.67708961,3050.5,3050.1,2.3535857]
[1767356937264,3.3989203,3050.5,3050.1,2.3535857]
[1767356937468,2.43453558,3050.4,3050.0,2.39624655]
[1767356937669,2.43453558,3050.3,3050.0,2.39624655]
[1767356938154,0.66790502,3050.4,3050.0,2.39624655]
[1767356938756,0.9051752,3050.5,3050.1,2.39524655]
[1767356941459,5.71458071,3050.6,3050.1,2.39524655]
[1767356942943,2.43653558,3050.6,3050.1,2.39524655]
[1767356943741,5.71459842,3050.6,3050.1,2.39524655]
[1767356944971,2.43653558,3050.6,3050.1,2.39524655]
[1767356945572,5.71458067,3050.6,3050.1,2.39524655]
[1767356947273,2.43653558,3050.6,3050.1,2.39524655]
[1767356947643,5.71457993,3050.6,3050.1,2.39524655]
[1767356948276,2.43653558,3050.6,3050.1,2.39524655]
[1767356949373,0.002,3050.6,3050.1,2.63487121]
[1767356949554,3.29553558,3050.8,3050.3,2.39524655]
[1767356952385,2.43453558,3050.7,3050.3,2.39524655]
[1767356961284,2.43653558,3050.7,3050.3,2.39524655]
[1767356962870,0.002,3050.7,3050.3,2.39524655]
[1767356963072,0.002,3050.7,3050.3,2.65873367]
[1767356963073,2.43653558,3050.7,3050.3,2.65873367]
[1767356963884,2.43653558,3050.7,3050.3,2.39524655]
[1767356969888,0.002,3050.7,3050.3,2.39524655]
[1767356970367,8.79205683,3051.0,3050.6,2.49121923]
[1767356971475,0.002,3051.1,3050.6,2.49121923]
[1767356971669,0.002,3051.3,3050.8,2.49121923]
[1767356974709,2.31205683,3051.2,3050.7,0.95254154]
[1767356975008,2.31205683,3051.2,3050.7,5.76914286]
[1767356975605,2.31205683,3051.2,3050.7,2.49121923]
[1767356977120,2.31405683,3051.2,3050.7,2.49121923]
[1767356977611,2.31205683,3051.0,3050.4,2.49121923]
[1767356982020,2.31205683,3051.0,3050.3,0.001]
[1767356982021,2.31205683,3050.8,3050.3,0.001]
[1767356983291,2.31205683,3050.8,3050.3,2.49221923]
[1767356985221,3.2778398,3050.8,3050.3,2.49221923]
[1767356985422,2.31205683,3050.7,3050.3,2.49221923]
[1767356990708,2.31205683,3050.6,3050.1,2.49121923]
[1767356993528,2.31205683,3050.6,3050.1,3.06830879]
[1767357000444,2.43423753,3051.3,3050.2,2.27136017]
[1767357000624,2.43223753,3051.1,3050.3,2.27136017]
[1767357001615,3.75610358,3051.1,3050.3,2.27136017]
[1767357001816,2.43223753,3051.0,3050.3,2.27136017]
[1767357003346,5.71167638,3051.2,3050.4,2.27136017]
[1767357003554,2.43223753,3051.1,3050.4,2.27136017]
[1767357005559,2.43223753,3051.1,3050.5,2.27136017]
[1767357009559,2.43423753,3051.1,3050.5,2.27136017]
[1767357009761,2.43423753,3051.1,3050.5,2.82632784]
[1767357011350,2.43423753,3051.1,3050.5,2.27136017]
[1767357012140,2.43223753,3050.9,3050.2,2.27136017]
[1767357012460,2.43223753,3050.7,3050.2,2.27136017]
[1767357013949,2.43223753,3050.7,3050.0,2.27236017]
[1767357014154,3.27798447,3050.7,3050.0,2.27236017]
[1767357014355,2.43223753,3050.6,3050.0,2.82748141]
[1767357015044,2.43223753,3050.6,3050.1,2.27136017]
[1767357018945,0.002,3050.7,3050.2,2.27136017]
[1767357020649,2.43423753,3050.7,3050.2,2.27136017]
[1767357021992,2.43223753,3050.6,3050.0,2.82748141]